fUSD/lending_fUSD_20240814
["ID","MTS","AMOUNT","RATE_DAILY","PERIOD"]
[334860174,1723610159055,1026.54,0.00013972,2]
[334860175,1723610161863,735.05,0.00013698,2]
[334860176,1723610162162,735.05,0.00013972,2]
[334860177,1723610162890,500.0,0.00013698,2]
[334860178,1723610163164,500.0,0.00013972,2]
[334860179,1723610166120,500.0,0.00013698,2]
[334860180,1723610166397,500.0,0.00013972,2]
[334860182,1723610167324,518.41,0.00013698,2]
[334860183,1723610167562,518.41,0.00013972,2]
[334860184,1723610169477,500.0,0.00013698,2]
[334860185,1723610169805,500.0,0.00013972,2]
[334860186,1723610170968,1441.9,0.00013698,2]
[334860187,1723610171233,1441.9,0.00013972,2]
[334860188,1723610178021,500.0,0.00013698,2]
[334860189,1723610178628,500.0,0.00013972,2]
[334860190,1723610181391,664.26,0.00013698,2]
[334860191,1723610181657,664.26,0.00013972,2]
[334860193,1723610186436,631.26,0.00013698,2]
[334860194,1723610186689,631.26,0.00013972,2]
[334860195,1723610187346,760.31724236,0.00013972,2]
[334860196,1723610189614,551.67,0.00013698,2]
[334860197,1723610189726,551.67,0.00013972,2]
[334860198,1723610190195,706.5,0.00013698,2]
[334860199,1723610190451,706.5,0.00013972,2]
[334860200,1723610192823,1812.6454,0.00013931,2]
[334860201,1723610193386,500.0,0.00013698,2]
[334860202,1723610193503,1285.4546833,0.00013972,2]
[334860203,1723610193652,500.0,0.00013972,2]
[334860204,1723610195385,500.0,0.00013698,2]
[334860205,1723610195653,500.0,0.00013972,2]
[334860206,1723610198863,173.22442214,0.00013698,2]
[334860208,1723610199243,585.17,0.00013698,2]
[334860209,1723610199305,585.17,0.00013972,2]
[334860210,1723610203708,500.0,0.00013698,2]
[334860211,1723610203986,500.0,0.00013972,2]
[334860212,1723610205458,654.12,0.00013698,2]
[334860213,1723610205869,654.12,0.00013972,2]
[334860214,1723610206004,1011.87,0.00013698,2]
[334860215,1723610206272,1011.87,0.00013972,2]
[334860216,1723610207717,386.91,0.00011773,2]
[334860218,1723610211705,1223.89523949,0.00013972,2]
[334860219,1723610214849,500.0,0.00013698,2]
[334860220,1723610215101,278.42355286,0.00013972,2]
[334860222,1723610216833,500.0,0.00013698,2]
[334860223,1723610217097,500.0,0.00013972,2]
[334860224,1723610217341,500.0,0.00013698,2]
[334860225,1723610217612,500.0,0.00013972,2]
[334860226,1723610219089,680.73,0.00013698,2]
[334860227,1723610219320,680.73,0.00013972,2]
[334860229,1723610222505,693.04915274,0.00013972,2]
[334860230,1723610223771,797.52,0.00013698,2]
[334860231,1723610224049,797.52,0.00013972,2]
[334860232,1723610228067,295.78,0.00013691,2]
[334860233,1723610228785,500.0,0.00013698,2]
[334860234,1723610229090,500.0,0.00013972,2]
[334860237,1723610232490,500.0,0.00013698,2]
[334860238,1723610232586,910.84,0.00013698,2]
[334860239,1723610232762,500.0,0.00013972,2]
[334860240,1723610232856,910.84,0.00013972,2]
[334860241,1723610233327,7837.62,0.00013999,2]
[334860242,1723610234505,716.3,0.00013698,2]
[334860243,1723610234802,716.3,0.00013972,2]
[334860245,1723610236615,500.0,0.00013698,2]
[334860246,1723610236879,500.0,0.00013972,2]
[334860247,1723610240455,500.0,0.00013698,2]
[334860248,1723610240731,500.0,0.00013972,2]
[334860249,1723610241644,1061.24,0.00013698,2]
[334860250,1723610242128,1061.24,0.00013972,2]
[334860251,1723610243371,500.0,0.00013698,2]
[334860252,1723610243723,500.0,0.00013972,2]
[334860253,1723610245709,973.75235372,0.00013972,2]
[334860254,1723610246381,197.26,0.00010945,2]
[334860256,1723610248909,528.22,0.00013698,2]
[334860257,1723610249167,528.22,0.00013972,2]
[334860258,1723610250149,558.86,0.00013698,2]
[334860259,1723610250731,558.86,0.00013972,2]
[334860260,1723610254311,500.0,0.00013698,2]
[334860261,1723610254563,500.0,0.00013972,2]
[334860262,1723610254939,500.0,0.00013698,2]
[334860263,1723610255209,500.0,0.00013972,2]
[334860264,1723610258287,1221.9,0.00013698,2]
[334860265,1723610258599,1221.9,0.00013972,2]
[334860266,1723610260031,541.84,0.00013698,2]
[334860267,1723610260832,541.84,0.00013972,2]
[334860268,1723610260893,590.98,0.00013698,2]
[334860269,1723610260950,590.98,0.00013972,2]
[334860271,1723610267998,414.95827151,0.00013999,2]
[334860272,1723610269649,500.0,0.00013698,2]
[334860273,1723610269878,619.99,0.00013698,2]
[334860274,1723610269916,500.0,0.00013972,2]
[334860275,1723610270168,619.99,0.00013972,2]
[334860276,1723610272239,872.38896969,0.00013972,2]
[334860277,1723610278544,666.86,0.00013698,2]
[334860278,1723610278730,500.0,0.00013698,2]
[334860279,1723610278816,666.86,0.00013972,2]
[334860280,1723610279005,500.0,0.00013972,2]
[334860282,1723610279416,500.0,0.00013698,2]
[334860283,1723610279686,500.0,0.00013972,2]
[334860284,1723610284380,500.0,0.00013698,2]
[334860285,1723610284585,500.0,0.00013972,2]
[334860286,1723610286357,760.31724236,0.00013972,2]
[334860287,1723610287510,1284.17228177,0.00013972,2]
[334860288,1723610289418,577.56,0.00013698,2]
[334860289,1723610289683,577.56,0.00013972,2]
[334860290,1723610290952,500.0,0.00013698,2]
[334860291,1723610291226,500.0,0.00013972,2]
[334860292,1723610293474,500.0,0.00013698,2]
[334860293,1723610293758,500.0,0.00013972,2]
[334860295,1723610296781,1105.13,0.00013698,2]
[334860296,1723610297039,1105.13,0.00013972,2]
[334860297,1723610298411,550.22,0.00013698,2]
[334860298,1723610298447,549.11,0.00013698,2]
[334860299,1723610298674,550.22,0.00013972,2]
[334860300,1723610298879,549.11,0.00013972,2]
[334860301,1723610304709,955.3103647,0.00013972,2]
[334860302,1723610309387,544.03,0.00013698,2]
[334860303,1723610309657,544.03,0.00013972,2]
[334860304,1723610310612,23900.0,0.00013597,2]
[334860306,1723610311744,500.0,0.00013698,2]
[334860307,1723610312022,500.0,0.00013972,2]
[334860308,1723610313209,698.56,0.00013698,2]
[334860309,1723610313470,698.56,0.00013972,2]
[334860310,1723610315663,500.0,0.00013698,2]
[334860311,1723610315738,500.0,0.00013972,2]
[334860313,1723610318615,1112.36271888,0.00013972,2]
[334860314,1723610321067,500.0,0.00013698,2]
[334860315,1723610321175,500.0,0.00013698,2]
[334860316,1723610321304,500.0,0.00013972,2]
[334860317,1723610321784,500.0,0.00013972,2]
[334860318,1723610326090,500.0,0.00013698,2]
[334860319,1723610326169,500.0,0.00013972,2]
[334860321,1723610330572,500.0,0.00013698,2]
[334860322,1723610330827,500.0,0.00013972,2]
[334860323,1723610340171,500.0,0.00013698,2]
[334860324,1723610340436,500.0,0.00013972,2]
[334860325,1723610341530,1053.8,0.00013698,2]
[334860326,1723610341840,1053.8,0.00013972,2]
[334860329,1723610343702,973.75235372,0.00013972,2]
[334860330,1723610347365,500.0,0.00013698,2]
[334860331,1723610347666,500.0,0.00013972,2]
[334860332,1723610350319,500.0,0.00013698,2]
[334860333,1723610350574,500.0,0.00013972,2]
[334860334,1723610353924,500.0,0.00013698,2]
[334860335,1723610354119,500.0,0.00013698,2]
[334860336,1723610354189,500.0,0.00013972,2]
[334860337,1723610354376,500.0,0.00013972,2]
[334860338,1723610359568,576.22,0.00013698,2]
[334860339,1723610359862,576.22,0.00013972,2]
[334860341,1723610365230,543.1,0.00013698,2]
[334860342,1723610365469,543.1,0.00013972,2]
[334860343,1723610368575,500.0,0.00013698,2]
[334860344,1723610368631,500.0,0.00013972,2]
[334860345,1723610369739,155.72738038,0.00013698,2]
[334860346,1723610374036,500.0,0.00013698,2]
[334860347,1723610374260,872.53467396,0.00013972,2]
[334860348,1723610374616,500.0,0.00013972,2]
[334860350,1723610383388,-768.42,0.00014031,2]
[334860351,1723610383426,-386.91,0.00014037,2]
[334860352,1723610383457,-250.0,0.0001408,2]
[334860353,1723610383488,-181.01883807,0.00014135,2]
[334860354,1723610383518,-257.9495,0.00014146,2]
[334860355,1723610383549,-422.35,0.00014225,3]
[334860356,1723610383579,-860.27502339,0.00014225,2]
[334860357,1723610383613,-150.0,0.00014234,2]
[334860358,1723610383644,-500.0,0.00014235,2]
[334860359,1723610383675,-500.0,0.00014235,2]
[334860360,1723610383704,-500.0,0.00014235,2]
[334860361,1723610383737,-500.0,0.00014235,2]
[334860362,1723610383766,-500.0,0.00014235,2]
[334860363,1723610383796,-500.0,0.00014235,2]
[334860364,1723610383828,-500.0,0.00014235,2]
[334860365,1723610383857,-500.0,0.00014235,2]
[334860366,1723610383888,-500.0,0.00014235,2]
[334860367,1723610383918,-558.35083706,0.00014235,2]
[334860368,1723610383950,-500.0,0.00014235,2]
[334860369,1723610383981,-500.0,0.00014235,2]
[334860370,1723610384014,-500.0,0.00014235,2]
[334860371,1723610384047,-500.0,0.00014235,2]
[334860372,1723610384077,-500.0,0.00014235,2]
[334860373,1723610384107,-500.0,0.00014235,2]
[334860374,1723610384137,-500.0,0.00014235,2]
[334860375,1723610384168,-527.97,0.00014235,2]
[334860376,1723610384199,-872.35,0.00014235,2]
[334860377,1723610384229,-3909.94,0.00014235,2]
[334860378,1723610384259,-467.06,0.00014235,2]
[334860379,1723610384288,-500.0,0.00014235,2]
[334860380,1723610384319,-500.0,0.00014235,2]
[334860381,1723610384349,-500.0,0.00014235,2]
[334860382,1723610384378,-383.50134236,0.00014235,2]
[334860383,1723610384705,-500.0,0.00014235,2]
[334860384,1723610384740,-500.0,0.00014235,2]
[334860385,1723610384778,-500.0,0.00014235,2]
[334860386,1723610384813,-500.0,0.00014235,2]
[334860387,1723610384851,-500.0,0.00014235,2]
[334860388,1723610384886,-509.78,0.00014235,2]
[334860389,1723610384921,-636.56,0.00014235,2]
[334860390,1723610384954,-500.0,0.00014235,2]
[334860391,1723610384987,-500.0,0.00014235,2]
[334860392,1723610385020,-916.08,0.00014235,2]
[334860393,1723610385052,-900.76,0.00014235,2]
[334860394,1723610385083,-592.32,0.00014235,2]
[334860395,1723610385116,-500.0,0.00014235,2]
[334860396,1723610385147,-500.0,0.00014235,2]
[334860397,1723610385181,-500.0,0.00014235,2]
[334860398,1723610385213,-904.13,0.00014235,2]
[334860399,1723610385244,-217.92327678,0.00014235,2]
[334860400,1723610385274,-500.0,0.00014235,2]
[334860401,1723610385303,-500.0,0.00014235,2]
[334860402,1723610385333,-500.0,0.00014235,2]
[334860403,1723610385364,-500.0,0.00014235,2]
[334860404,1723610385395,-500.0,0.00014235,2]
[334860405,1723610385428,-618.22,0.00014235,2]
[334860406,1723610385459,-500.0,0.00014235,2]
[334860407,1723610385489,-500.0,0.00014235,2]
[334860408,1723610385518,-678.28,0.00014235,2]
[334860409,1723610385549,-500.0,0.00014235,2]
[334860410,1723610385580,-500.0,0.00014235,2]
[334860411,1723610385610,-500.0,0.00014235,2]
[334860412,1723610385639,-862.51,0.00014235,2]
[334860413,1723610385669,-841.64,0.00014235,2]
[334860414,1723610385703,-500.0,0.00014235,2]
[334860415,1723610385733,-788.32,0.00014235,2]
[334860416,1723610385763,-708.82,0.00014235,2]
[334860417,1723610385794,-538.38,0.00014235,2]
[334860418,1723610385825,-1037.03,0.00014235,2]
[334860419,1723610385855,-500.0,0.00014235,2]
[334860420,1723610385886,-500.0,0.00014235,2]
[334860421,1723610385916,-822.66,0.00014235,2]
[334860422,1723610385946,-500.0,0.00014235,2]
[334860423,1723610385976,-1393.96,0.00014235,2]
[334860424,1723610386007,-500.0,0.00014235,2]
[334860425,1723610386037,-569.31,0.00014235,2]
[334860426,1723610386070,-500.0,0.00014235,2]
[334860427,1723610386104,-500.0,0.00014235,2]
[334860428,1723610386135,-500.0,0.00014235,2]
[334860429,1723610386168,-1250.59,0.00014235,2]
[334860430,1723610386197,-668.58,0.00014235,2]
[334860431,1723610386230,-500.0,0.00014235,2]
[334860432,1723610386259,-500.0,0.00014235,2]
[334860433,1723610386289,-500.0,0.00014235,2]
[334860434,1723610386319,-500.0,0.00014235,2]
[334860435,1723610386349,-925.57,0.00014235,2]
[334860436,1723610386378,-550.84,0.00014235,2]
[334860437,1723610386408,-500.0,0.00014235,2]
[334860438,1723610386437,-1967.61,0.00014235,2]
[334860439,1723610386466,-821.64,0.00014235,2]
[334860440,1723610386495,-500.0,0.00014235,2]
[334860441,1723610386524,-500.0,0.00014235,2]
[334860442,1723610386553,-531.99,0.00014235,2]
[334860443,1723610386585,-658.61,0.00014235,2]
[334860444,1723610386614,-500.0,0.00014235,2]
[334860445,1723610386645,-1523.06,0.00014235,2]
[334860446,1723610386676,-500.0,0.00014235,2]
[334860447,1723610386707,-733.77,0.00014235,2]
[334860448,1723610386737,-500.0,0.00014235,2]
[334860449,1723610386766,-1165.1,0.00014235,2]
[334860450,1723610386798,-6839.08,0.00014235,2]
[334860451,1723610386832,-772.94,0.00014235,2]
[334860452,1723610386863,-1690.75,0.00014235,2]
[334860453,1723610386894,-500.0,0.00014235,2]
[334860454,1723610386923,-500.0,0.00014235,2]
[334860455,1723610386954,-500.0,0.00014235,2]
[334860456,1723610386983,-1314.71,0.00014235,2]
[334860457,1723610387013,-500.0,0.00014235,2]
[334860458,1723610387043,-500.0,0.00014235,2]
[334860459,1723610387073,-808.040452,0.00014235,2]
[334860460,1723610387106,-923.85,0.00014235,2]
[334860461,1723610387136,-868.72,0.00014235,2]
[334860462,1723610387169,-743.16,0.00014235,2]
[334860463,1723610387198,-500.0,0.00014235,2]
[334860464,1723610387229,-689.2,0.00014235,2]
[334860465,1723610387259,-500.0,0.00014235,2]
[334860466,1723610387290,-856.85,0.00014235,2]
[334860467,1723610387319,-1067.94,0.00014235,2]
[334860468,1723610387351,-500.0,0.00014235,2]
[334860469,1723610387382,-500.0,0.00014235,2]
[334860470,1723610387411,-1050.73,0.00014235,2]
[334860471,1723610387439,-1545.58,0.00014235,2]
[334860472,1723610387468,-727.05,0.00014235,2]
[334860473,1723610387496,-500.0,0.00014235,2]
[334860474,1723610387526,-500.0,0.00014235,2]
[334860475,1723610387558,-652.85,0.00014235,2]
[334860476,1723610387586,-500.0,0.00014235,2]
[334860477,1723610387615,-7855.01,0.00014235,2]
[334860478,1723610387643,-641.13,0.00014235,2]
[334860479,1723610387671,-1306.39,0.00014235,2]
[334860480,1723610387700,-500.0,0.00014235,2]
[334860481,1723610387732,-500.0,0.00014235,2]
[334860482,1723610387761,-1322.86,0.00014235,2]
[334860483,1723610387795,-500.0,0.00014235,2]
[334860484,1723610387824,-1158.89,0.00014235,2]
[334860485,1723610387853,-539.01,0.00014235,2]
[334860486,1723610387882,-500.0,0.00014235,2]
[334860487,1723610387910,-500.0,0.00014235,2]
[334860488,1723610387943,-500.0,0.00014235,2]
[334860489,1723610387972,-1101.82,0.00014235,2]
[334860490,1723610388001,-500.0,0.00014235,2]
[334860491,1723610388031,-500.0,0.00014235,2]
[334860492,1723610388062,-500.0,0.00014235,2]
[334860493,1723610388093,-500.0,0.00014235,2]
[334860494,1723610388122,-500.0,0.00014235,2]
[334860495,1723610388154,-1392.04,0.00014235,2]
[334860496,1723610388182,-500.0,0.00014235,2]
[334860497,1723610388212,-500.0,0.00014235,2]
[334860498,1723610388241,-764.24,0.00014235,2]
[334860499,1723610388272,-500.0,0.00014235,2]
[334860500,1723610388302,-500.0,0.00014235,2]
[334860501,1723610388333,-500.0,0.00014235,2]
[334860502,1723610388362,-500.0,0.00014235,2]
[334860503,1723610388392,-500.0,0.00014235,2]
[334860504,1723610388421,-500.0,0.00014235,2]
[334860505,1723610388452,-764.9,0.00014235,2]
[334860506,1723610388482,-842.04,0.00014235,2]
[334860507,1723610388511,-500.0,0.00014235,2]
[334860508,1723610388540,-500.0,0.00014235,2]
[334860509,1723610388570,-500.0,0.00014235,2]
[334860510,1723610388602,-500.0,0.00014235,2]
[334860511,1723610388632,-2139.75,0.00014235,2]
[334860512,1723610388660,-500.0,0.00014235,2]
[334860513,1723610388689,-500.0,0.00014235,2]
[334860514,1723610388719,-500.0,0.00014235,2]
[334860515,1723610388747,-636.64,0.00014235,2]
[334860516,1723610388776,-500.0,0.00014235,2]
[334860517,1723610388811,-500.0,0.00014235,2]
[334860518,1723610388842,-1062.33,0.00014235,2]
[334860519,1723610388873,-500.0,0.00014235,2]
[334860520,1723610388902,-500.0,0.00014235,2]
[334860521,1723610388933,-500.0,0.00014235,2]
[334860522,1723610388966,-500.0,0.00014235,2]
[334860523,1723610389001,-500.0,0.00014235,2]
[334860524,1723610389030,-500.0,0.00014235,2]
[334860525,1723610389059,-500.0,0.00014235,2]
[334860526,1723610389088,-1856.91,0.00014235,2]
[334860527,1723610389117,-500.0,0.00014235,2]
[334860528,1723610389148,-500.0,0.00014235,2]
[334860529,1723610389178,-500.0,0.00014235,2]
[334860530,1723610389385,-500.0,0.00014235,2]
[334860531,1723610389459,-500.0,0.00014235,2]
[334860532,1723610389490,-1722.25,0.00014235,2]
[334860533,1723610389520,-883.42,0.00014235,2]
[334860534,1723610389549,-500.0,0.00014235,2]
[334860535,1723610389580,-5839.87,0.00014235,2]
[334860536,1723610389611,-500.0,0.00014235,2]
[334860537,1723610389640,-500.0,0.00014235,2]
[334860538,1723610389670,-500.0,0.00014235,2]
[334860539,1723610389699,-500.0,0.00014235,2]
[334860540,1723610389727,-2427.09,0.00014235,2]
[334860541,1723610389757,-4672.39,0.00014235,2]
[334860542,1723610389787,-500.0,0.00014235,2]
[334860543,1723610389816,-500.0,0.00014235,2]
[334860544,1723610389847,-500.0,0.00014235,2]
[334860545,1723610389877,-3801.52,0.00014235,2]
[334860546,1723610389906,-500.0,0.00014235,2]
[334860547,1723610389937,-500.0,0.00014235,2]
[334860548,1723610389966,-500.0,0.00014235,2]
[334860549,1723610389998,-1140.71,0.00014235,2]
[334860550,1723610390027,-500.0,0.00014235,2]
[334860551,1723610390057,-500.0,0.00014235,2]
[334860552,1723610390087,-500.0,0.00014235,2]
[334860553,1723610390116,-601.07,0.00014235,2]
[334860554,1723610390145,-494.9,0.00014235,2]
[334860555,1723610390177,-500.0,0.00014235,2]
[334860556,1723610390206,-500.0,0.00014235,2]
[334860557,1723610390235,-500.0,0.00014235,2]
[334860558,1723610390264,-540.72,0.00014235,2]
[334860559,1723610390292,-378.33781638,0.00014235,2]
[334860560,1723610390321,-536.87,0.00014235,2]
[334860561,1723610390353,-500.0,0.00014235,2]
[334860562,1723610390384,-5738.68,0.00014235,2]
[334860563,1723610390414,-500.0,0.00014235,2]
[334860564,1723610390444,-500.0,0.00014235,2]
[334860565,1723610390474,-500.0,0.00014235,2]
[334860566,1723610390503,-500.0,0.00014235,2]
[334860567,1723610390535,-500.0,0.00014235,2]
[334860568,1723610390564,-500.0,0.00014235,2]
[334860569,1723610390593,-500.0,0.00014235,2]
[334860570,1723610390622,-295.41317912,0.00014235,2]
[334860571,1723610390651,-500.0,0.00014235,2]
[334860572,1723610390680,-41821.9403909,0.00014236,2]
[334860573,1723610390710,-500.0,0.00014245,2]
[334860574,1723610390741,-1084.68,0.00014245,2]
[334860575,1723610390770,-3268.49,0.00014245,2]
[334860576,1723610390801,-1139.73,0.00014245,2]
[334860577,1723610390833,-1523.57,0.00014245,2]
[334860578,1723610390871,-500.0,0.00014245,2]
[334860579,1723610390905,-715.36,0.00014245,2]
[334860580,1723610390938,-697.5,0.00014245,2]
[334860581,1723610390974,-2372.08,0.00014245,2]
[334860582,1723610391010,-784.76,0.00014245,2]
[334860583,1723610391042,-668.75,0.00014245,2]
[334860584,1723610391073,-887.31,0.00014245,2]
[334860585,1723610391106,-500.0,0.00014245,2]
[334860586,1723610391137,-500.0,0.00014245,2]
[334860587,1723610391171,-3947.46,0.00014245,2]
[334860588,1723610391202,-786.87,0.00014245,2]
[334860589,1723610391233,-1530.85,0.00014245,2]
[334860590,1723610391263,-2709.36,0.00014245,2]
[334860591,1723610391294,-500.0,0.00014245,2]
[334860592,1723610391324,-1071.56,0.00014245,2]
[334860593,1723610391355,-500.0,0.00014245,2]
[334860594,1723610391384,-1642.42,0.00014245,2]
[334860595,1723610391414,-752.3,0.00014245,2]
[334860596,1723610391443,-1050.5,0.00014245,2]
[334860597,1723610391474,-500.0,0.00014245,2]
[334860598,1723610391505,-1105.42,0.00014245,2]
[334860599,1723610391535,-500.0,0.00014245,2]
[334860600,1723610391564,-1821.8,0.00014245,2]
[334860601,1723610391595,-4627.76,0.00014245,2]
[334860602,1723610391624,-2808.4,0.00014245,2]
[334860603,1723610391654,-8746.12,0.00014245,2]
[334860604,1723610391684,-733.21,0.00014245,2]
[334860605,1723610391713,-1305.85,0.00014245,2]
[334860606,1723610391743,-500.0,0.00014245,2]
[334860607,1723610391773,-1772.16,0.00014245,2]
[334860608,1723610391806,-1288.27,0.00014245,2]
[334860609,1723610391837,-500.0,0.00014245,2]
[334860610,1723610391868,-4037.13,0.00014245,2]
[334860611,1723610391900,-1819.43,0.00014245,2]
[334860612,1723610391932,-949.83,0.00014245,2]
[334860613,1723610391965,-550.1,0.00014245,2]
[334860614,1723610391995,-3010.27,0.00014245,2]
[334860615,1723610392024,-2092.38,0.00014245,2]
[334860616,1723610392054,-644.54,0.00014245,2]
[334860617,1723610392085,-500.0,0.00014245,2]
[334860618,1723610392114,-2270.92,0.00014245,2]
[334860619,1723610392142,-208.2780751,0.00014246,2]
[334860620,1723610392177,-500.0,0.00014246,2]
[334860621,1723610392207,-262.91671485,0.00014246,2]
[334860622,1723610392237,-500.0,0.00014246,2]
[334860623,1723610392267,-500.0,0.00014246,2]
[334860624,1723610392297,-1212.31,0.00014246,2]
[334860625,1723610392327,-500.0,0.00014246,2]
[334860626,1723610392358,-551.86,0.00014246,2]
[334860627,1723610392389,-500.0,0.00014246,2]
[334860628,1723610392417,-644.79754089,0.00014246,2]
[334860629,1723610392447,-500.0,0.00014246,2]
[334860630,1723610392477,-500.0,0.00014246,2]
[334860631,1723610392507,-237.74308679,0.00014246,2]
[334860632,1723610392536,-500.0,0.00014246,2]
[334860633,1723610392566,-545.52827083,0.00014246,2]
[334860634,1723610392595,-500.0,0.00014246,2]
[334860635,1723610392624,-150.0,0.00014246,2]
[334860636,1723610392654,-503.33698912,0.00014246,2]
[334860637,1723610392683,-629.7,0.00014246,2]
[334860638,1723610392712,-549.87906127,0.00014246,2]
[334860639,1723610392743,-500.0,0.00014246,2]
[334860640,1723610392774,-500.0,0.00014246,2]
[334860641,1723610392804,-1265.53,0.00014246,2]
[334860642,1723610392835,-659.58,0.00014246,2]
[334860643,1723610392867,-547.34,0.00014246,2]
[334860644,1723610392897,-500.0,0.00014246,2]
[334860645,1723610392929,-500.0,0.00014246,2]
[334860646,1723610392958,-574.7438653,0.00014246,2]
[334860647,1723610392988,-544.44,0.00014246,2]
[334860648,1723610393016,-699.26,0.00014246,2]
[334860649,1723610393046,-500.0,0.00014246,2]
[334860650,1723610393076,-500.0,0.00014246,2]
[334860651,1723610393108,-1003.73,0.00014246,2]
[334860652,1723610393136,-500.0,0.00014246,2]
[334860653,1723610393169,-568.78,0.00014246,2]
[334860654,1723610393201,-190.1321582,0.00014246,2]
[334860655,1723610393233,-1769.92,0.00014246,2]
[334860656,1723610393265,-500.0,0.00014246,2]
[334860657,1723610393302,-614.06,0.00014246,2]
[334860658,1723610393333,-655.09,0.00014246,2]
[334860659,1723610393364,-500.0,0.00014246,2]
[334860660,1723610393394,-500.0,0.00014246,2]
[334860662,1723610393425,-942.88,0.00014246,2]
[334860663,1723610393457,-500.0,0.00014246,2]
[334860664,1723610393489,-724.39,0.00014246,2]
[334860665,1723610393520,-500.0,0.00014246,2]
[334860666,1723610393552,-500.0,0.00014246,2]
[334860667,1723610393583,-500.0,0.00014246,2]
[334860668,1723610393614,-500.0,0.00014246,2]
[334860669,1723610393645,-500.0,0.00014246,2]
[334860670,1723610393674,-500.0,0.00014246,2]
[334860671,1723610393704,-520.36,0.00014246,2]
[334860672,1723610393734,-500.0,0.00014246,2]
[334860673,1723610393763,-500.0,0.00014246,2]
[334860674,1723610393792,-500.0,0.00014246,2]
[334860675,1723610393822,-686.53,0.00014246,2]
[334860676,1723610393851,-765.19,0.00014246,2]
[334860677,1723610393880,-500.0,0.00014246,2]
[334860678,1723610393909,-206.83194371,0.00014246,2]
[334860679,1723610393945,-933.79,0.00014246,2]
[334860680,1723610394191,-500.0,0.00014246,2]
[334860681,1723610394233,-500.0,0.00014246,2]
[334860682,1723610394271,-673.1,0.00014246,2]
[334860683,1723610394303,-685.05,0.00014246,2]
[334860684,1723610394342,-657.67,0.00014246,2]
[334860685,1723610394376,-500.0,0.00014246,2]
[334860686,1723610394413,-500.0,0.00014246,2]
[334860687,1723610394444,-500.0,0.00014246,2]
[334860688,1723610394475,-593.13,0.00014246,2]
[334860689,1723610394506,-852.01,0.00014246,2]
[334860690,1723610394536,-500.0,0.00014246,2]
[334860691,1723610394566,-500.0,0.00014246,2]
[334860692,1723610394596,-500.0,0.00014246,2]
[334860693,1723610394627,-933.89,0.00014246,2]
[334860694,1723610394658,-500.0,0.00014246,2]